fUSD/lending_fUSD_20260129
["ID","MTS","AMOUNT","RATE_DAILY","PERIOD"]
[404016053,1769724648018,-2000.0,0.00017398,2]
[404016054,1769724648028,-2000.0,0.00017398,2]
[404016055,1769724648039,-1500.64,0.00017398,2]
[404016056,1769724648049,-1000.0,0.00017398,2]
[404016057,1769724648060,-1000.0,0.00017398,2]
[404016058,1769724648071,-1000.0,0.00017398,2]
[404016059,1769724648082,-1000.0,0.00017398,2]
[404016060,1769724648092,-1000.0,0.00017398,2]
[404016061,1769724648103,-1000.0,0.00017398,2]
[404016062,1769724648113,-1000.0,0.00017398,2]
[404016063,1769724648126,-4600.0,0.000174,6]
[404016064,1769724648137,-250.0,0.00017403,2]
[404016065,1769724648149,-270.0455652,0.00017422,2]
[404016066,1769724648159,-1660.17763539,0.00017444,2]
[404016067,1769724648170,-1500.0,0.00017468,2]
[404016068,1769724648182,-500.0,0.00017468,2]
[404016069,1769724648193,-1000.0,0.00017468,2]
[404016070,1769724648204,-1500.0,0.00017468,2]
[404016071,1769724648216,-1500.0,0.00017468,2]
[404016072,1769724648227,-1500.0,0.00017468,2]
[404016073,1769724648238,-280.03725112,0.00017477,2]
[404016074,1769724648247,-17391.79956528,0.00017493,2]
[404016075,1769724648258,-5765.38971742,0.00017493,2]
[404016076,1769724648267,-6200.0,0.000175,6]
[404016077,1769724648277,-500.0,0.00017507,2]
[404016078,1769724648287,-2073.0,0.00017513,2]
[404016079,1769724648296,-500.0,0.0001752,2]
[404016080,1769724648306,-500.0,0.0001752,2]
[404016081,1769724648316,-290.39862941,0.00017532,2]
[404016082,1769724648325,-1600.0,0.00017534,2]
[404016083,1769724648335,-1204.0,0.00017576,2]
[404016084,1769724648348,-916.0,0.00017576,2]
[404016085,1769724648358,-181.08010149,0.00017585,2]
[404016086,1769724648368,-885.86649465,0.00017585,2]
[404016087,1769724648378,-217.15233878,0.00017585,2]
[404016088,1769724648390,-301.1433787,0.00017587,2]
[404016089,1769724648400,-7700.0,0.000176,6]
[404016090,1769724648409,-5932.0,0.00017605,2]
[404016091,1769724648420,-2443.0,0.00017605,2]
[404016092,1769724648430,-567.0,0.00017605,2]
[404016093,1769724648439,-1166.0,0.0001768,2]
[404016094,1769724648449,-150.0,0.00017699,2]
[404016095,1769724648458,-500.0,0.00017699,2]
[404016096,1769724648469,-150.09574604,0.00017699,2]
[404016097,1769724648479,-177.26922974,0.00017699,2]
[404016098,1769724648488,-500.0,0.00017699,2]
[404016099,1769724648498,-500.0,0.00017699,2]
[404016100,1769724648508,-168.53220506,0.00017699,2]
[404016101,1769724648518,-153.57030056,0.00017699,2]
[404016102,1769724648528,-150.0,0.00017699,2]
[404016103,1769724648538,-150.0,0.00017699,2]
[404016104,1769724648547,-150.0,0.00017699,2]
[404016105,1769724648558,-150.0,0.00017699,2]
[404016106,1769724648568,-150.0,0.00017699,2]
[404016107,1769724648578,-150.0,0.00017699,2]
[404016108,1769724648589,-500.0,0.00017699,2]
[404016109,1769724648599,-500.0,0.00017699,2]
[404016110,1769724648609,-150.0,0.00017699,2]
[404016111,1769724648619,-150.0,0.00017699,2]
[404016112,1769724648631,-150.0,0.00017699,2]
[404016113,1769724648641,-500.0,0.00017699,2]
[404016114,1769724648651,-150.0,0.00017699,2]
[404016115,1769724648661,-709.0,0.00017699,2]
[404016116,1769724648671,-500.0,0.00017699,2]
[404016117,1769724648681,-150.0,0.00017699,2]
[404016118,1769724648692,-500.0,0.00017699,2]
[404016119,1769724648703,-150.0,0.00017699,2]
[404016120,1769724648714,-150.0,0.00017699,2]
[404016121,1769724648724,-500.0,0.00017699,2]
[404016122,1769724648735,-500.0,0.00017699,2]
[404016123,1769724648746,-150.0,0.00017699,2]
[404016124,1769724648755,-150.0,0.00017699,2]
[404016125,1769724648766,-500.0,0.00017699,2]
[404016126,1769724648776,-150.0,0.00017699,2]
[404016127,1769724648786,-150.0,0.00017699,2]
[404016128,1769724648796,-768.0,0.00017699,2]
[404016129,1769724648809,-1500.0,0.000177,6]
[404016130,1769724648820,-200.0,0.00017745,2]
[404016131,1769724648830,-500.0,0.00017754,2]
[404016132,1769724648846,-500.0,0.00017754,2]
[404016133,1769724648856,-502.06755918,0.00017754,2]
[404016134,1769724648866,-150.0,0.00017754,2]
[404016135,1769724648876,-150.0,0.00017754,2]
[404016136,1769724648885,-150.0,0.00017754,2]
[404016137,1769724648895,-150.0,0.00017754,2]
[404016138,1769724648905,-500.0,0.00017754,2]
[404016139,1769724648916,-500.0,0.00017754,2]
[404016140,1769724648925,-150.0,0.00017754,2]
[404016141,1769724648935,-150.0,0.00017754,2]
[404016142,1769724648945,-500.0,0.00017754,2]
[404016143,1769724648954,-709.0,0.00017754,2]
[404016144,1769724648964,-500.0,0.00017754,2]
[404016145,1769724648974,-250.34724417,0.00017754,2]
[404016146,1769724648983,-500.0,0.00017754,2]
[404016147,1769724648993,-150.0,0.00017754,2]
[404016148,1769724649003,-500.0,0.00017754,2]
[404016149,1769724649013,-512.54801825,0.00017754,2]
[404016150,1769724649023,-500.0,0.00017754,2]
[404016151,1769724649033,-150.0,0.00017754,2]
[404016152,1769724649042,-150.0,0.00017754,2]
[404016153,1769724649052,-768.0,0.00017754,2]
[404016154,1769724649063,-200.0,0.00017762,2]
[404016155,1769724649073,-389.0,0.00017763,2]
[404016156,1769724649085,-500.0,0.0001778,2]
[404016157,1769724649095,-500.0,0.0001778,2]
[404016158,1769724649115,-500.0,0.0001778,2]
[404016159,1769724649124,-500.0,0.0001778,2]
[404016160,1769724649134,-531.24026795,0.0001778,2]
[404016161,1769724649144,-500.0,0.00017792,2]
[404016162,1769724649153,-371.0,0.00017793,2]
[404016163,1769724649163,-2500.0,0.000178,2]
[404016164,1769724649173,-1500.0,0.000178,6]
[404016165,1769724649183,-500.0,0.00017808,2]
[404016166,1769724649192,-500.0,0.00017809,2]
[404016167,1769724649203,-500.0,0.00017809,2]
[404016168,1769724649213,-150.0,0.00017809,2]
[404016169,1769724649224,-204.62121756,0.00017809,2]
[404016170,1769724649233,-150.0,0.00017809,2]
[404016171,1769724649244,-200.0,0.00017809,2]
[404016172,1769724649254,-500.0,0.00017809,2]
[404016173,1769724649264,-500.0,0.00017809,2]
[404016174,1769724649273,-294.0,0.00017809,2]
[404016175,1769724649283,-150.0,0.00017809,2]
[404016176,1769724649292,-500.0,0.00017809,2]
[404016177,1769724649303,-709.0,0.00017809,2]
[404016178,1769724649313,-500.0,0.00017809,2]
[404016179,1769724649323,-500.0,0.00017809,2]
[404016180,1769724649332,-150.0,0.00017809,2]
[404016181,1769724649345,-341.66064153,0.00017809,2]
[404016182,1769724649354,-500.0,0.00017809,2]
[404016183,1769724649364,-150.0,0.00017809,2]
[404016184,1769724649374,-150.0,0.00017809,2]
[404016185,1769724649384,-768.0,0.00017809,2]
[404016186,1769724649394,-335.43644,0.0001782,2]
[404016187,1769724649403,-335.43644,0.0001782,2]
[404016188,1769724649414,-5331.79303466,0.00017824,2]
[404016189,1769724649424,-9405.91491077,0.00017824,2]
[404016190,1769724649435,-14070.68617569,0.00017824,2]
[404016191,1769724649445,-19038.1356,0.00017824,2]
[404016192,1769724649455,-500.0,0.00017838,2]
[404016193,1769724649465,-500.0,0.00017838,2]
[404016194,1769724649475,-500.0,0.00017838,2]
[404016195,1769724649485,-500.0,0.00017838,2]
[404016196,1769724649495,-224.63,0.00017844,2]
[404016197,1769724649505,-200.0,0.00017856,2]
[404016198,1769724649515,-500.0,0.00017863,2]
[404016199,1769724649524,-500.0,0.00017863,2]
[404016200,1769724649534,-500.0,0.00017863,2]
[404016201,1769724649544,-202.04160627,0.00017863,2]
[404016202,1769724649553,-150.0,0.00017863,2]
[404016203,1769724649563,-500.0,0.00017863,2]
[404016204,1769724649572,-500.0,0.00017863,2]
[404016205,1769724649582,-150.0,0.00017863,2]
[404016206,1769724649592,-500.0,0.00017863,2]
[404016207,1769724649601,-709.0,0.00017863,2]
[404016208,1769724649611,-500.0,0.00017863,2]
[404016209,1769724649620,-250.80363626,0.00017863,2]
[404016210,1769724649630,-150.0,0.00017863,2]
[404016211,1769724649640,-500.0,0.00017863,2]
[404016212,1769724649649,-250.0,0.00017863,2]
[404016213,1769724649659,-173.21613332,0.00017863,2]
[404016214,1769724649668,-768.0,0.00017863,2]
[404016215,1769724649678,-25000.0,0.00017874,3]
[404016216,1769724649687,-736.0,0.00017874,2]
[404016217,1769724649697,-25000.0,0.00017882,3]
[404016218,1769724649707,-25000.0,0.00017891,3]
[404016219,1769724649717,-179.22,0.00017897,2]
[404016220,1769724649726,-165.61,0.00017897,2]
[404016221,1769724649736,-151.0,0.00017897,2]
[404016222,1769724649746,-500.0,0.00017899,2]
[404016223,1769724649755,-500.0,0.00017899,2]
[404016224,1769724649765,-428.88858635,0.00017899,2]
[404016225,1769724649774,-1000.0,0.000179,2]
[404016226,1769724649783,-10000.0,0.000179,2]
[404016227,1769724649793,-25000.0,0.000179,3]
[404016228,1769724649803,-562.47335595,0.000179,2]
[404016229,1769724649812,-1500.0,0.000179,6]
[404016230,1769724649822,-17391.79956528,0.000179,2]
[404016231,1769724649831,-21246.17961376,0.000179,3]
[404016232,1769724649840,-5765.38971742,0.000179,2]
[404016233,1769724649852,-2844.91322461,0.000179,2]
[404016234,1769724649862,-500.0,0.00017918,2]
[404016235,1769724649871,-500.0,0.00017918,2]
[404016236,1769724649881,-500.0,0.00017918,2]
[404016237,1769724649891,-150.0,0.00017918,2]
[404016238,1769724649901,-500.0,0.00017918,2]
[404016239,1769724649911,-260.05406606,0.00017918,2]
[404016240,1769724649920,-150.0,0.00017918,2]
[404016241,1769724649930,-500.0,0.00017918,2]
[404016242,1769724649939,-709.0,0.00017918,2]
[404016243,1769724649949,-500.0,0.00017918,2]
[404016244,1769724649958,-150.0,0.00017918,2]
[404016245,1769724649968,-500.0,0.00017918,2]
[404016246,1769724649978,-768.0,0.00017918,2]
[404016247,1769724649988,-180.11,0.00017923,2]
[404016248,1769724649997,-172.36,0.00017923,2]
[404016249,1769724650007,-500.0,0.00017972,2]
[404016250,1769724650016,-500.0,0.00017973,2]
[404016251,1769724650025,-500.0,0.00017973,2]
[404016252,1769724650036,-255.48629937,0.00017973,2]
[404016253,1769724650047,-506.85745262,0.00017973,2]
[404016254,1769724650059,-500.0,0.00017973,2]
[404016255,1769724650069,-500.0,0.00017973,2]
[404016256,1769724650079,-500.0,0.00017973,2]
[404016257,1769724650090,-500.0,0.00017973,2]
[404016258,1769724650101,-500.0,0.00017973,2]
[404016259,1769724650111,-150.0,0.00017973,2]
[404016260,1769724650122,-500.0,0.00017973,2]
[404016261,1769724650131,-150.0,0.00017973,2]
[404016262,1769724650140,-500.0,0.00017973,2]
[404016263,1769724650149,-709.0,0.00017973,2]
[404016264,1769724650159,-500.0,0.00017973,2]
[404016265,1769724650168,-250.0,0.00017973,2]
[404016266,1769724650179,-500.0,0.00017973,2]
[404016267,1769724650188,-768.0,0.00017973,2]
[404016268,1769724650199,-150.0,0.00017973,2]
[404016269,1769724650210,-150.0,0.00017973,2]
[404016270,1769724650225,-150.0,0.00017981,2]
[404016271,1769724650235,-150.0,0.00017981,2]
[404016272,1769724650245,-150.0,0.00017981,2]
[404016273,1769724650254,-150.0,0.00017981,2]
[404016274,1769724650264,-3478.0,0.00017981,2]
[404016275,1769724650275,-1334.0,0.00017981,2]
[404016276,1769724650286,-1409.0,0.00017981,2]
[404016277,1769724650297,-615.0,0.00017981,2]
[404016278,1769724650307,-1270.0,0.00017981,2]
[404016279,1769724650318,-27554.0996896,0.0001799,2]
[404016280,1769724650328,-281.61601525,0.0001799,2]
[404016281,1769724650339,-281.61601525,0.0001799,2]
[404016282,1769724650354,-151.0,0.00017997,2]
[404016283,1769724650364,-500.0,0.00017999,2]
[404016284,1769724650375,-500.0,0.00017999,2]
[404016285,1769724650384,-500.0,0.00017999,2]
[404016286,1769724650396,-500.0,0.00017999,2]
[404016287,1769724650406,-500.0,0.00017999,2]
[404016288,1769724650418,-500.0,0.00017999,2]
[404016289,1769724650428,-600.08885683,0.00017999,2]
[404016290,1769724650440,-189.76384321,0.00017999,2]
[404016291,1769724650450,-300.0,0.00017999,2]
[404016292,1769724650460,-500.0,0.00017999,2]
[404016293,1769724650470,-500.0,0.00017999,2]
[404016294,1769724650480,-300.0,0.00017999,2]
[404016295,1769724650490,-666.0,0.00017999,2]
[404016296,1769724650499,-300.0,0.00017999,2]
[404016297,1769724650509,-300.0,0.00017999,2]
[404016298,1769724650520,-666.0,0.00017999,2]
[404016299,1769724650531,-500.0,0.00017999,2]
[404016300,1769724650541,-179.41357912,0.00017999,2]
[404016301,1769724650552,-821303.86043007,0.00018,2]
[404016302,1769724650562,-316690.10308149,0.00018,2]
[404016303,1769724650572,-26031.7212793,0.00018,2]
[404016304,1769724650624,-22.67041376,0.00018,2]
[404016305,1769724651107,-5021.91098412,0.00018,2]
[404016306,1769724651131,-275.99999997,0.00018,2]
[404016307,1769724651143,-2686.33933517,0.00018,2]
[404016308,1769724651154,-19316.32149353,0.00018,2]
[404016309,1769724651167,-32730.16142225,0.00018,2]
[404016310,1769724651193,-287.24576371,0.00018,2]
[404016313,1769724834523,1071.11189023,0.00014138,5]
[404016314,1769725087286,343.94134212,0.000268,71]
[404016315,1769725368705,252.17067902,0.0002663,120]
[404016316,1769725368730,284.76315819,0.0002663,120]
[404016317,1769725525528,-164.57,0.00013724,2]
[404016318,1769725542452,150.0,0.0001367,2]
[404016319,1769725555094,-195.0,0.00013854,2]
[404016320,1769725555117,-250.0,0.00013855,2]
[404016321,1769725555138,-264.0,0.00013855,2]
[404016322,1769725555159,-195.0,0.00013855,2]
[404016323,1769725555179,-175.972188,0.00013856,2]
[404016324,1769725555200,-215.62712599,0.00013856,2]
[404016325,1769725652137,-18.62287401,0.00013856,2]
[404016326,1769725652161,-250.0,0.00013867,2]
[404016327,1769725652182,-945.14806764,0.00013919,2]
[404016330,1769725747124,-254.85193236,0.00013919,2]
[404016331,1769725747146,-250.0,0.0001392,2]
[404016332,1769725747520,-1000.0,0.00013921,2]
[404016333,1769725747562,-968.88,0.00013921,2]
[404016334,1769725747583,-1200.0,0.00014021,2]
[404016335,1769725747605,-300.0,0.00014021,2]
[404016336,1769725747633,-200.0,0.00014022,2]
[404016337,1769725747654,-500.0,0.00014022,2]
[404016338,1769725747677,-500.0,0.00014022,2]
[404016339,1769725747702,-500.0,0.00014022,2]
[404016340,1769725747724,-500.0,0.00014022,2]
[404016341,1769725747747,-500.0,0.00014022,2]
[404016342,1769725747768,-500.0,0.00014022,2]
[404016343,1769725747789,-500.0,0.00014022,2]
[404016344,1769725747810,-500.0,0.00014022,2]
[404016345,1769725747831,-500.0,0.00014022,2]
[404016346,1769725747852,-500.0,0.00014022,2]
[404016347,1769725747873,-500.0,0.00014022,2]
[404016348,1769725747894,-220.12574733,0.00014022,2]
[404016349,1769725768118,-279.87425267,0.00014022,2]
[404016350,1769725768143,-500.0,0.00014022,2]
[404016351,1769725768166,-500.0,0.00014022,2]
[404016352,1769725768187,-500.0,0.00014022,2]
[404016353,1769725768212,-500.0,0.00014022,2]
[404016354,1769725768243,-200.0,0.00014022,2]
[404016355,1769725768271,-500.0,0.00014022,2]
[404016356,1769725768292,-500.0,0.00014022,2]
[404016357,1769725768315,-578.12638172,0.00014022,2]
[404016358,1769725768337,-500.0,0.00014022,2]
[404016359,1769725768359,-151.0,0.00014022,2]
[404016360,1769725768380,-151.0,0.00014022,2]
[404016361,1769725768401,-151.0,0.00014022,2]
[404016362,1769725768423,-151.0,0.00014022,2]
[404016363,1769725768443,-151.0,0.00014022,2]
[404016364,1769725768464,-151.0,0.00014022,2]
[404016365,1769725768485,-151.0,0.00014022,2]
[404016366,1769725768506,-151.0,0.00014022,2]
[404016367,1769725768527,-151.0,0.00014022,2]
[404016368,1769725768548,-151.0,0.00014022,2]
[404016369,1769725768569,-151.0,0.00014022,2]
[404016370,1769725768589,-150.0,0.00014028,2]
[404016371,1769725768608,-300.0,0.00014028,2]
[404016372,1769725768632,-384.45580405,0.00014029,2]
[404016373,1769725768656,-946.23912066,0.00014029,2]
[404016374,1769725768681,-946.23912066,0.00014029,2]
[404016375,1769725768706,-946.23912066,0.00014029,2]
[404016376,1769725768730,-946.23912066,0.00014029,2]
[404016377,1769725768753,-946.23912066,0.00014029,2]
[404016378,1769725768777,-946.23912066,0.00014029,2]
[404016379,1769725768800,-946.23912066,0.00014029,2]
[404016380,1769725768824,-946.23912066,0.00014029,2]
[404016381,1769725768848,-946.23912066,0.00014029,2]
[404016382,1769725768872,-329.9046217,0.00014029,2]
[404016404,1769725832348,-1200.0,0.00014028,2]
[404016406,1769725832357,-150.0,0.00014028,2]
[404016408,1769725832366,-300.0,0.00014028,2]
[404016410,1769725832375,-266.0,0.00014029,2]
[404016412,1769725832385,-616.33449896,0.00014029,2]
[404016414,1769725832394,-946.23912066,0.00014029,2]
[404016416,1769725832403,-946.23912066,0.00014029,2]
[404016418,1769725832413,-946.23912066,0.00014029,2]
[404016420,1769725832422,-680.57237887,0.00014029,2]
[404016437,1769725832571,-265.66674179,0.00014029,2]
[404016439,1769725832580,-946.23912066,0.00014029,2]
[404016441,1769725832590,-946.23912066,0.00014029,2]
[404016443,1769725832599,-946.23912066,0.00014029,2]
[404016445,1769725832608,-946.23912066,0.00014029,2]
[404016447,1769725832617,-946.23912066,0.00014029,2]
[404016449,1769725832626,-946.23912066,0.00014029,2]
[404016451,1769725832638,-946.23912066,0.00014029,2]
[404016453,1769725832648,-946.23912066,0.00014029,2]
[404016455,1769725832657,-946.23912066,0.00014029,2]
[404016457,1769725832665,-875.79138098,0.00014029,2]
[404016544,1769725838048,-70.44773968,0.00014029,2]
[404016545,1769725838058,-702.79823585,0.00014029,2]
[404016549,1769725838213,-243.44088481,0.00014029,2]
[404016550,1769725838223,-256.55911519,0.00014029,2]
[404016632,1769725840327,-689.68000547,0.00014029,2]
[404016633,1769725840337,-946.23912066,0.00014029,2]
[404016634,1769725840347,-946.23912066,0.00014029,2]
[404016635,1769725840357,-946.23912066,0.00014029,2]
[404016636,1769725840368,-946.23912066,0.00014029,2]
[404016637,1769725840378,-946.23912066,0.00014029,2]
[404016638,1769725840388,-946.23912066,0.00014029,2]
[404016639,1769725840397,-946.23912066,0.00014029,2]
[404016640,1769725840408,-946.23912066,0.00014029,2]
[404016641,1769725840417,-946.23912066,0.00014029,2]
[404016642,1769725840427,-946.23912066,0.00014029,2]
[404016643,1769725840436,-946.23912066,0.00014029,2]
[404016644,1769725840446,-946.23912066,0.00014029,2]
[404016645,1769725840455,-946.23912066,0.00014029,2]
[404016646,1769725840465,-946.23912066,0.00014029,2]
[404016647,1769725840474,-946.23912066,0.00014029,2]
[404016648,1769725840484,-946.23912066,0.00014029,2]
[404016649,1769725840494,-946.23912066,0.00014029,2]
[404016650,1769725840503,-946.23912066,0.00014029,2]
[404016651,1769725840512,-946.23912066,0.00014029,2]
[404016652,1769725840522,-946.23912066,0.00014029,2]
[404016653,1769725840531,-946.23912066,0.00014029,2]
[404016654,1769725840540,-946.23912066,0.00014029,2]
[404016655,1769725840549,-946.23912066,0.00014029,2]
[404016656,1769725840558,-946.23912066,0.00014029,2]
[404016657,1769725840567,-946.23912066,0.00014029,2]
[404016658,1769725840576,-946.23912066,0.00014029,2]
[404016659,1769725840585,-946.23912066,0.00014029,2]
[404016660,1769725840593,-500.0,0.00014029,2]
[404016661,1769725840602,-505.41543018,0.00014029,2]
[404016663,1769725840611,-500.0,0.00014029,2]
[404016664,1769725840620,-328.70563031,0.00014029,2]
[404016665,1769725840629,-500.0,0.00014029,2]
[404016666,1769725840640,-500.0,0.00014029,2]
[404016667,1769725840651,-500.0,0.00014029,2]
[404016668,1769725840660,-500.0,0.00014029,2]
[404016669,1769725840669,-500.0,0.00014029,2]
[404016670,1769725840678,-500.0,0.00014029,2]
[404016671,1769725840690,-500.0,0.00014029,2]
[404016672,1769725840699,-922.58314265,0.00014029,2]
[404016673,1769725840709,-922.58314265,0.00014029,2]
[404016674,1769725840719,-922.58314265,0.00014029,2]
[404016675,1769725840728,-922.58314265,0.00014029,2]
[404016676,1769725840738,-922.58314265,0.00014029,2]
[404016677,1769725840747,-922.58314265,0.00014029,2]
[404016678,1769725840756,-922.58314265,0.00014029,2]
[404016679,1769725840766,-922.58314265,0.00014029,2]
[404016680,1769725840775,-922.58314265,0.00014029,2]
[404016681,1769725840784,-922.58314265,0.00014029,2]
[404016682,1769725840793,-922.58314265,0.00014029,2]
[404016683,1769725840802,-922.58314265,0.00014029,2]
[404016684,1769725840811,-922.58314265,0.00014029,2]
[404016685,1769725840821,-922.58314265,0.00014029,2]
[404016686,1769725840830,-922.58314265,0.00014029,2]
[404016687,1769725840839,-922.58314265,0.00014029,2]
[404016688,1769725840849,-922.58314265,0.00014029,2]
[404016689,1769725840858,-922.58314265,0.00014029,2]
[404016690,1769725840867,-922.58314265,0.00014029,2]
[404016691,1769725840876,-922.58314265,0.00014029,2]
[404016692,1769725840886,-922.58314265,0.00014029,2]
[404016693,1769725840895,-922.58314265,0.00014029,2]
[404016694,1769725840904,-922.58314265,0.00014029,2]
[404016695,1769725840914,-922.58314265,0.00014029,2]
[404016696,1769725840923,-922.58314265,0.00014029,2]
[404016697,1769725840932,-922.58314265,0.00014029,2]
[404016698,1769725840943,-922.58314265,0.00014029,2]
[404016699,1769725840952,-922.58314265,0.00014029,2]
[404016700,1769725840962,-922.58314265,0.00014029,2]
[404016701,1769725840971,-1014.84145691,0.00014029,2]
[404016702,1769725840981,-1014.84145691,0.00014029,2]
[404016703,1769725840992,-1014.84145691,0.00014029,2]
[404016704,1769725841002,-1014.84145691,0.00014029,2]
[404016705,1769725841011,-1014.84145691,0.00014029,2]
[404016706,1769725841021,-1014.84145691,0.00014029,2]
[404016707,1769725841030,-1014.84145691,0.00014029,2]
[404016708,1769725841040,-1014.84145691,0.00014029,2]
[404016709,1769725841049,-1014.84145691,0.00014029,2]
[404016710,1769725841058,-500.0,0.00014029,2]
[404016711,1769725841069,-438.50728317,0.00014029,2]
[404016712,1769725841078,-500.0,0.00014029,2]
[404016713,1769725841089,-206.12550311,0.00014029,2]
[404016714,1769725841100,-12098.91306495,0.0001403,2]
[404016715,1769725841112,-872.22872785,0.0001403,2]
[404016725,1769725845031,-33.51017205,0.00013929,2]
[404016726,1769725845950,-143.95547945,0.00013929,2]
[404016766,1769725846396,-12331.18531835,0.00013929,2]
[404016769,1769725846432,-2738.33329641,0.00013929,2]
[404016770,1769725846655,-392.57999984,0.00013929,2]
[404016898,1769725893557,3202.104,0.00013651,2]
[404016899,1769725893694,291.438,0.00013651,2]
[404016900,1769725966018,9130.69,0.0001367,2]
[404016901,1769726133569,1731.28,0.00013317,2]
[404016902,1769726210147,337.05748479,0.000266,120]
[404016903,1769726210170,662.94251521,0.000266,120]
[404016904,1769726210462,129.78393713,0.000266,120]
[404016905,1769726210485,792.72645234,0.000266,120]
[404016906,1769726269846,2041.03,0.00013309,2]
[404016907,1769726341331,1375.73,0.00013161,2]
[404016908,1769726341574,1375.73,0.00013203,2]
[404016909,1769726341762,1375.73,0.00013245,2]
[404016910,1769726342038,1375.73,0.00013287,2]
[404016911,1769726342268,1375.73,0.00013329,2]
[404016912,1769726342546,1375.73,0.00013371,2]
[404016913,1769726342757,1375.73,0.00013412,2]
[404016914,1769726342884,343.94134212,0.000262,120]
[404016915,1769726342967,369.9,0.00013454,2]
[404016916,1769726342991,1005.83,0.00013454,2]
[404016917,1769726343404,1375.73,0.00013496,2]
[404016918,1769726343807,1375.73,0.00013538,2]
[404016919,1769726344389,1375.73,0.0001358,2]
[404016920,1769726344501,1375.73,0.00013622,2]
[404016921,1769726344725,1375.73,0.00013664,2]
[404016922,1769726344828,1375.73,0.00013706,2]
[404016923,1769726466567,200.0,0.00013102,2]
[404016925,1769726595215,6262.27896792,0.0001369,2]
[404016926,1769726601619,2031.09,0.00013724,2]
[404016927,1769726623084,291.05925441,0.00013699,2]
[404016928,1769726686924,1415.58177767,0.00013178,2]
[404016929,1769726686950,10000.01,0.00013178,2]
[404016930,1769726686977,10000.01,0.00013178,2]
[404016931,1769726687001,10000.01,0.00013178,2]
[404016932,1769726687036,14424.36822233,0.00013178,2]
[404016934,1769726829150,-1375.73,0.00013748,2]
[404016935,1769726829176,-1375.73,0.0001379,2]
[404016936,1769726829198,-1375.73,0.00013832,2]
[404016937,1769726829220,-901.33464302,0.00013873,2]
[404016938,1769726846542,-298.66535698,0.00013873,2]
[404016939,1769726846565,-143.45609408,0.00013874,2]
[404016940,1769726854275,-169.80609012,0.00013874,2]
[404016941,1769726949097,-202.30576797,0.00013806,2]
[404016942,1769726949119,-36.98758999,0.00013874,2]
[404016943,1769726966517,-1025.48022581,0.00013874,2]
[404016944,1769726966537,-1604.45514228,0.000139,2]
[404016945,1769726966559,-213.72967473,0.00013906,2]
[404016946,1769726966578,-920.76651104,0.00013906,2]
[404016947,1769726966598,-1375.73,0.00013916,2]
[404016948,1769726966619,-140.94584849,0.00013928,2]
[404016949,1769726972086,-575.69545401,0.00013928,2]
[404016950,1769726972107,-300.0,0.00013928,2]
[404016951,1769726972129,-300.0,0.00013928,2]
[404016952,1769726972153,-500.0,0.00013929,2]
[404016953,1769726972173,-500.0,0.00013929,2]
[404016954,1769726972194,-546.56219791,0.00013929,2]
[404016955,1769726972215,-233.22890067,0.00013929,2]
[404016956,1769726972237,-1375.73,0.00013958,2]
[404016957,1769726972258,-4440.41723842,0.00013992,2]
[404016958,1769726972278,-150.0,0.00013997,2]
[404016959,1769727001141,300.0,0.00013997,2]
[404016960,1769727001787,1200.0,0.00013997,2]
[404016965,1769727032273,-500.0,0.00013998,2]